fUSD/lending_fUSD_20240425
["ID","MTS","AMOUNT","RATE_DAILY","PERIOD"]
[323554906,1714084261508,-500.0,0.00011506,2]
[323554907,1714084261517,-702.39,0.00011506,2]
[323554908,1714084261526,-500.0,0.00011506,2]
[323554909,1714084261535,-500.0,0.00011506,2]
[323554910,1714084261544,-500.0,0.00011506,2]
[323554911,1714084261553,-500.0,0.00011506,2]
[323554912,1714084261562,-500.0,0.00011506,2]
[323554913,1714084261571,-500.0,0.00011506,2]
[323554914,1714084261580,-500.0,0.00011506,2]
[323554915,1714084261589,-500.0,0.00011506,2]
[323554916,1714084261600,-500.0,0.00011506,2]
[323554917,1714084261611,-500.0,0.00011506,2]
[323554918,1714084261620,-500.0,0.00011506,2]
[323554919,1714084261629,-500.0,0.00011506,2]
[323554920,1714084261639,-500.0,0.00011506,2]
[323554921,1714084261649,-500.0,0.00011506,2]
[323554922,1714084261660,-500.0,0.00011506,2]
[323554923,1714084261670,-500.0,0.00011506,2]
[323554924,1714084261689,-500.0,0.00011506,2]
[323554925,1714084261699,-500.0,0.00011506,2]
[323554926,1714084261708,-622.33,0.00011506,2]
[323554927,1714084261717,-500.0,0.00011506,2]
[323554928,1714084261727,-500.0,0.00011506,2]
[323554929,1714084261737,-500.0,0.00011506,2]
[323554930,1714084261749,-500.0,0.00011506,2]
[323554931,1714084261760,-500.0,0.00011506,2]
[323554932,1714084261770,-500.0,0.00011506,2]
[323554933,1714084261780,-500.0,0.00011506,2]
[323554934,1714084261790,-500.0,0.00011506,2]
[323554935,1714084261799,-500.0,0.00011506,2]
[323554936,1714084261808,-893.88,0.00011506,2]
[323554937,1714084261817,-500.0,0.00011506,2]
[323554938,1714084261827,-500.0,0.00011506,2]
[323554939,1714084261837,-500.0,0.00011506,2]
[323554940,1714084261847,-500.0,0.00011506,2]
[323554941,1714084261858,-500.0,0.00011506,2]
[323554942,1714084261869,-500.0,0.00011506,2]
[323554943,1714084261879,-500.0,0.00011506,2]
[323554944,1714084261888,-500.0,0.00011506,2]
[323554945,1714084261898,-500.0,0.00011506,2]
[323554946,1714084261907,-500.0,0.00011506,2]
[323554947,1714084261917,-500.0,0.00011506,2]
[323554948,1714084261927,-500.0,0.00011506,2]
[323554949,1714084261935,-500.0,0.00011506,2]
[323554950,1714084261944,-500.0,0.00011506,2]
[323554951,1714084261954,-716.4,0.00011506,2]
[323554952,1714084261964,-508.84383238,0.00011506,2]
[323554953,1714084261974,-1844.19,0.00011506,2]
[323554954,1714084261983,-153.08,0.00011506,2]
[323554955,1714084261992,-500.0,0.00011506,2]
[323554956,1714084262002,-500.0,0.00011506,2]
[323554957,1714084262011,-500.0,0.00011506,2]
[323554958,1714084262021,-500.0,0.00011506,2]
[323554959,1714084262031,-500.0,0.00011506,2]
[323554960,1714084262041,-3628.69,0.00011506,2]
[323554961,1714084262051,-500.0,0.00011506,2]
[323554962,1714084262060,-500.0,0.00011506,2]
[323554963,1714084262070,-1246.94,0.00011506,2]
[323554964,1714084262079,-500.0,0.00011506,2]
[323554965,1714084262088,-500.0,0.00011506,2]
[323554966,1714084262098,-500.0,0.00011506,2]
[323554967,1714084262108,-7940.54,0.00011506,2]
[323554968,1714084262117,-2023.22,0.00011506,2]
[323554969,1714084262127,-928.21,0.00011506,2]
[323554970,1714084262136,-876.06,0.00011506,2]
[323554971,1714084262146,-1388.55,0.00011506,2]
[323554972,1714084262155,-500.0,0.00011506,2]
[323554973,1714084262165,-500.0,0.00011506,2]
[323554974,1714084262176,-500.0,0.00011506,2]
[323554975,1714084262186,-11290.63309079,0.00011506,2]
[323554976,1714084262669,-442.02690921,0.00011506,2]
[323554977,1714084262679,-500.0,0.00011506,2]
[323554978,1714084262692,-544.27,0.00011506,2]
[323554979,1714084262703,-1698.91,0.00011506,2]
[323554980,1714084262712,-199.08,0.00011506,2]
[323554981,1714084262722,-500.0,0.00011506,2]
[323554982,1714084262731,-500.0,0.00011506,2]
[323554983,1714084262741,-1248.1,0.00011506,2]
[323554984,1714084262750,-500.0,0.00011506,2]
[323554985,1714084262759,-2114.29,0.00011506,2]
[323554986,1714084262769,-500.0,0.00011506,2]
[323554987,1714084262779,-500.0,0.00011506,2]
[323554988,1714084262788,-643.93,0.00011506,2]
[323554989,1714084262797,-1169.27,0.00011506,2]
[323554990,1714084262807,-500.0,0.00011506,2]
[323554991,1714084262817,-1186.46,0.00011506,2]
[323554992,1714084262826,-838.2,0.00011506,2]
[323554993,1714084262836,-500.0,0.00011506,2]
[323554994,1714084262846,-1003.23,0.00011506,2]
[323554995,1714084262856,-621.85,0.00011506,2]
[323554996,1714084262866,-500.0,0.00011506,2]
[323554997,1714084262875,-1031.69,0.00011506,2]
[323554998,1714084262885,-576.9,0.00011506,2]
[323554999,1714084262894,-1282.15,0.00011506,2]
[323555000,1714084262904,-549.8,0.00011506,2]
[323555001,1714084262914,-500.0,0.00011506,2]
[323555002,1714084262924,-20896.39,0.00011506,2]
[323555003,1714084262933,-500.0,0.00011506,2]
[323555004,1714084262943,-500.0,0.00011506,2]
[323555005,1714084262952,-1309.41,0.00011506,2]
[323555006,1714084262962,-500.0,0.00011506,2]
[323555007,1714084262971,-2106.0,0.00011506,2]
[323555008,1714084262981,-500.0,0.00011506,2]
[323555009,1714084262991,-731.15,0.00011506,2]
[323555010,1714084263001,-993.62,0.00011506,2]
[323555011,1714084263010,-500.0,0.00011506,2]
[323555012,1714084263020,-500.0,0.00011506,2]
[323555013,1714084263030,-500.0,0.00011506,2]
[323555014,1714084263039,-500.0,0.00011506,2]
[323555015,1714084263050,-1362.53,0.00011506,2]
[323555016,1714084263059,-1353.91,0.00011506,2]
[323555017,1714084263069,-500.0,0.00011506,2]
[323555018,1714084263079,-642.55,0.00011506,2]
[323555019,1714084263088,-672.31,0.00011506,2]
[323555020,1714084263099,-7735.92,0.00011506,2]
[323555021,1714084263109,-500.0,0.00011506,2]
[323555022,1714084263118,-500.0,0.00011506,2]
[323555023,1714084263127,-663.46,0.00011506,2]
[323555024,1714084263137,-2377.14,0.00011506,2]
[323555025,1714084263146,-293.55488522,0.00011506,2]
[323555026,1714084263159,-206.44511478,0.00011506,2]
[323555027,1714084263169,-423.95488522,0.00011506,2]
[323555028,1714084263189,-76.04511478,0.00011506,2]
[323555029,1714084263198,-571.81488522,0.00011506,2]
[323555030,1714084263210,-567.10511478,0.00011506,2]
[323555031,1714084263220,-500.0,0.00011506,2]
[323555032,1714084263428,-500.0,0.00011506,2]
[323555033,1714084263439,-500.0,0.00011506,2]
[323555034,1714084263448,-2053.58,0.00011506,2]
[323555035,1714084263457,-1025.08,0.00011506,2]
[323555036,1714084263467,-500.0,0.00011506,2]
[323555037,1714084263476,-500.0,0.00011506,2]
[323555038,1714084263485,-500.0,0.00011506,2]
[323555039,1714084263494,-500.0,0.00011506,2]
[323555040,1714084263503,-500.0,0.00011506,2]
[323555041,1714084263513,-500.0,0.00011506,2]
[323555042,1714084263522,-625.96,0.00011506,2]
[323555043,1714084263532,-698.27,0.00011506,2]
[323555044,1714084263541,-500.0,0.00011506,2]
[323555045,1714084263551,-500.0,0.00011506,2]
[323555046,1714084263560,-500.0,0.00011506,2]
[323555047,1714084263569,-500.0,0.00011506,2]
[323555048,1714084263579,-593.73,0.00011506,2]
[323555049,1714084263588,-500.0,0.00011506,2]
[323555050,1714084263598,-500.0,0.00011506,2]
[323555051,1714084263608,-798.64,0.00011506,2]
[323555052,1714084263620,-500.0,0.00011506,2]
[323555053,1714084263629,-500.0,0.00011506,2]
[323555054,1714084263639,-500.0,0.00011506,2]
[323555055,1714084263648,-991.4,0.00011506,2]
[323555056,1714084263658,-500.0,0.00011506,2]
[323555057,1714084263667,-500.0,0.00011506,2]
[323555058,1714084263677,-837.48,0.00011506,2]
[323555059,1714084263686,-500.0,0.00011506,2]
[323555060,1714084263696,-500.0,0.00011506,2]
[323555061,1714084263707,-604.38,0.00011506,2]
[323555062,1714084263716,-241.62382837,0.00011506,2]
[323555063,1714084263726,-1087.27,0.00011506,2]
[323555064,1714084263735,-500.0,0.00011506,2]
[323555065,1714084263745,-628.61,0.00011506,2]
[323555066,1714084263754,-220.63117382,0.00011506,2]
[323555067,1714084263763,-500.0,0.00011506,2]
[323555068,1714084263772,-500.0,0.00011506,2]
[323555069,1714084263782,-4708.38,0.00011506,2]
[323555070,1714084263791,-2927.46,0.00011506,2]
[323555071,1714084263800,-500.0,0.00011506,2]
[323555072,1714084263809,-500.0,0.00011506,2]
[323555073,1714084263818,-500.0,0.00011506,2]
[323555074,1714084263827,-5334.8,0.00011506,2]
[323555075,1714084263837,-510.29,0.00011506,2]
[323555076,1714084263846,-500.0,0.00011506,2]
[323555077,1714084263855,-1001.2,0.00011506,2]
[323555078,1714084263865,-2068.43,0.00011506,2]
[323555079,1714084263874,-521.19,0.00011506,2]
[323555080,1714084263883,-500.0,0.00011506,2]
[323555081,1714084263893,-500.0,0.00011506,2]
[323555082,1714084263902,-500.0,0.00011506,2]
[323555083,1714084263912,-760.71,0.00011506,2]
[323555084,1714084263922,-748.84,0.00011506,2]
[323555085,1714084263932,-500.0,0.00011506,2]
[323555086,1714084263942,-500.0,0.00011506,2]
[323555087,1714084263952,-500.0,0.00011506,2]
[323555088,1714084263962,-500.0,0.00011506,2]
[323555089,1714084263971,-500.0,0.00011506,2]
[323555090,1714084263981,-3895.14,0.00011506,2]
[323555091,1714084263993,-500.0,0.00011506,2]
[323555092,1714084264003,-765.45,0.00011506,2]
[323555093,1714084264013,-500.0,0.00011506,2]
[323555094,1714084264022,-500.0,0.00011506,2]
[323555095,1714084264032,-3618.98,0.00011506,2]
[323555096,1714084264041,-500.0,0.00011506,2]
[323555097,1714084264051,-679.73,0.00011506,2]
[323555098,1714084264060,-500.0,0.00011506,2]
[323555099,1714084264070,-500.0,0.00011506,2]
[323555100,1714084264080,-1433.51,0.00011506,2]
[323555101,1714084264089,-1562.47,0.00011506,2]
[323555102,1714084264099,-500.0,0.00011506,2]
[323555103,1714084264108,-598.25,0.00011506,2]
[323555104,1714084264117,-3381.54,0.00011506,2]
[323555105,1714084264126,-1210.51,0.00011506,2]
[323555106,1714084264136,-565.51,0.00011506,2]
[323555107,1714084264146,-1522.08,0.00011506,2]
[323555108,1714084264155,-500.0,0.00011506,2]
[323555109,1714084264164,-500.0,0.00011506,2]
[323555110,1714084264174,-957.19,0.00011506,2]
[323555111,1714084264183,-1805.52,0.00011506,2]
[323555112,1714084264192,-500.0,0.00011506,2]
[323555113,1714084264201,-1995.43,0.00011506,2]
[323555114,1714084264211,-500.0,0.00011506,2]
[323555115,1714084264220,-1108.79,0.00011506,2]
[323555116,1714084264230,-500.0,0.00011506,2]
[323555117,1714084264239,-500.0,0.00011506,2]
[323555118,1714084264249,-559.75,0.00011506,2]
[323555119,1714084264258,-500.0,0.00011506,2]
[323555120,1714084264267,-707.6,0.00011506,2]
[323555121,1714084264276,-528.27,0.00011506,2]
[323555122,1714084264286,-500.0,0.00011506,2]
[323555123,1714084264295,-500.0,0.00011506,2]
[323555124,1714084264305,-526.86,0.00011506,2]
[323555125,1714084264314,-2893.15,0.00011506,2]
[323555126,1714084264323,-936.9,0.00011506,2]
[323555127,1714084264332,-769.38,0.00011506,2]
[323555128,1714084264342,-500.0,0.00011506,2]
[323555129,1714084264351,-798.72,0.00011506,2]
[323555130,1714084264361,-500.0,0.00011506,2]
[323555131,1714084264371,-1465.48,0.00011506,2]
[323555132,1714084264380,-500.0,0.00011506,2]
[323555133,1714084264389,-500.0,0.00011506,2]
[323555134,1714084264399,-500.0,0.00011506,2]
[323555135,1714084264408,-500.0,0.00011506,2]
[323555136,1714084264418,-500.0,0.00011506,2]
[323555137,1714084264429,-2086.0,0.00011506,2]
[323555138,1714084264439,-3289.11,0.00011506,2]
[323555139,1714084264448,-720.12,0.00011506,2]
[323555140,1714084264457,-500.0,0.00011506,2]
[323555141,1714084264467,-500.0,0.00011506,2]
[323555142,1714084264476,-500.0,0.00011506,2]
[323555143,1714084264485,-500.0,0.00011506,2]
[323555144,1714084264495,-500.0,0.00011506,2]
[323555145,1714084264504,-500.0,0.00011506,2]
[323555146,1714084264514,-1419.77,0.00011506,2]
[323555147,1714084264525,-500.0,0.00011506,2]
[323555148,1714084264535,-700.02,0.00011506,2]
[323555149,1714084264545,-1623.69,0.00011506,2]
[323555150,1714084264554,-1425.24,0.00011506,2]
[323555151,1714084264564,-500.0,0.00011506,2]
[323555152,1714084264574,-826.3,0.00011506,2]
[323555153,1714084264583,-500.0,0.00011506,2]
[323555154,1714084264593,-500.0,0.00011506,2]
[323555155,1714084264603,-500.0,0.00011506,2]
[323555156,1714084264618,-500.0,0.00011506,2]
[323555157,1714084264628,-500.0,0.00011506,2]
[323555158,1714084264637,-2319.94,0.00011506,2]
[323555159,1714084264646,-500.0,0.00011506,2]
[323555160,1714084264655,-1064.12,0.00011506,2]
[323555161,1714084264664,-500.0,0.00011506,2]
[323555162,1714084264676,-500.0,0.00011506,2]
[323555163,1714084264686,-500.0,0.00011506,2]
[323555164,1714084264696,-500.0,0.00011506,2]
[323555165,1714084264706,-580.53081798,0.00011506,2]
[323555166,1714084264715,-500.0,0.00011506,2]
[323555167,1714084264724,-500.0,0.00011506,2]
[323555168,1714084264733,-500.0,0.00011506,2]
[323555169,1714084264742,-6740.47,0.00011506,2]
[323555170,1714084264752,-500.0,0.00011506,2]
[323555171,1714084264761,-500.0,0.00011506,2]
[323555172,1714084264770,-500.0,0.00011506,2]
[323555173,1714084264778,-2560.13,0.00011506,2]
[323555174,1714084264788,-1275.22,0.00011506,2]
[323555175,1714084264797,-500.0,0.00011506,2]
[323555176,1714084264806,-4483.69,0.00011506,2]
[323555177,1714084264815,-1376.24,0.00011506,2]
[323555178,1714084264825,-500.0,0.00011506,2]
[323555179,1714084264834,-500.0,0.00011506,2]
[323555180,1714084264843,-1333.76,0.00011506,2]
[323555181,1714084264852,-500.0,0.00011506,2]
[323555182,1714084264861,-500.0,0.00011506,2]
[323555183,1714084264871,-500.0,0.00011506,2]
[323555184,1714084264880,-500.0,0.00011506,2]
[323555185,1714084264889,-1291.85,0.00011506,2]
[323555186,1714084264898,-505.16,0.00011506,2]
[323555187,1714084264907,-500.0,0.00011506,2]
[323555188,1714084264916,-812.89,0.00011506,2]
[323555189,1714084264928,-456.1,0.0001151,2]
[323555190,1714084264937,-6317.8963842,0.00011536,2]
[323555191,1714084264946,-337.05222214,0.00011569,2]
[323555192,1714084264955,-300.01598709,0.00011569,2]
[323555193,1714084264965,-500.0,0.000116,2]
[323555194,1714084264974,-2200.0,0.000116,4]
[323555195,1714084264983,-456.1,0.0001165,2]
[323555196,1714084264993,-150.0,0.00011651,2]
[323555197,1714084265002,-150.0,0.00011652,2]
[323555198,1714084265012,-150.0,0.00011655,2]
[323555199,1714084265021,-150.0,0.00011656,2]
[323555200,1714084265031,-150.0,0.0001166,2]
[323555201,1714084265040,-150.0,0.00011667,2]
[323555202,1714084265050,-150.0,0.00011668,2]
[323555203,1714084265059,-150.0,0.00011671,2]
[323555204,1714084265068,-150.0,0.00011675,2]
[323555205,1714084265077,-150.0,0.00011675,2]
[323555206,1714084265086,-150.0,0.00011675,2]
[323555207,1714084265095,-150.0,0.00011676,2]
[323555208,1714084265104,-150.0,0.0001168,2]
[323555209,1714084265113,-150.0,0.00011681,2]
[323555210,1714084265122,-150.0,0.00011684,2]
[323555211,1714084265132,-150.0,0.00011685,2]
[323555212,1714084265141,-150.0,0.00011687,2]
[323555213,1714084265150,-150.0,0.00011688,2]
[323555214,1714084265159,-150.0,0.00011689,2]
[323555215,1714084265169,-150.0,0.00011691,2]
[323555216,1714084265180,-150.0,0.00011695,2]
[323555217,1714084265189,-150.0,0.00011697,2]
[323555218,1714084265198,-150.0,0.00011698,2]
[323555219,1714084265208,-500.0,0.000117,2]
[323555220,1714084265218,-400.0,0.000117,4]
[323555221,1714084265227,-150.0,0.0001171,2]
[323555222,1714084265236,-150.0,0.00011715,2]
[323555223,1714084265245,-150.0,0.00011717,2]
[323555224,1714084265255,-150.0,0.00011719,2]
[323555225,1714084265264,-150.0,0.0001172,2]
[323555226,1714084265273,-150.0,0.00011723,2]
[323555227,1714084265283,-156.28,0.00011723,2]
[323555228,1714084265292,-150.0,0.00011724,2]
[323555229,1714084265301,-150.0,0.00011728,2]
[323555230,1714084265310,-150.0,0.00011729,2]
[323555231,1714084265319,-6317.8963842,0.00011731,2]
[323555232,1714084265329,-150.0,0.00011734,2]
[323555233,1714084265337,-150.0,0.00011736,2]
[323555234,1714084265347,-150.0,0.00011738,2]
[323555235,1714084265356,-150.0,0.00011738,2]
[323555236,1714084265365,-150.0,0.00011741,2]
[323555237,1714084265375,-150.0,0.00011746,2]
[323555238,1714084265384,-150.0,0.00011752,2]
[323555239,1714084265394,-150.0,0.00011756,2]
[323555240,1714084265403,-150.0,0.00011769,2]
[323555241,1714084265413,-150.0,0.00011774,2]
[323555242,1714084265423,-150.0,0.00011774,2]
[323555243,1714084265433,-150.0,0.00011775,2]
[323555244,1714084265442,-150.0,0.00011776,2]
[323555245,1714084265451,-150.0,0.00011778,2]
[323555246,1714084265461,-4583.44785109,0.00011779,2]
[323555247,1714084265470,-500.0,0.0001178,2]
[323555248,1714084265479,-1131.68,0.0001178,2]
[323555249,1714084265488,-1172.26,0.0001178,2]
[323555250,1714084265499,-999.26,0.0001178,2]
[323555251,1714084265508,-500.0,0.0001178,2]
[323555252,1714084265518,-221.02,0.0001178,2]
[323555253,1714084265527,-500.0,0.0001178,2]
[323555254,1714084265536,-500.0,0.0001178,2]
[323555255,1714084265545,-500.0,0.0001178,2]
[323555256,1714084265554,-500.0,0.0001178,2]
[323555257,1714084265564,-500.0,0.0001178,2]
[323555258,1714084265573,-500.0,0.0001178,2]
[323555259,1714084265582,-500.0,0.0001178,2]
[323555260,1714084265592,-500.0,0.0001178,2]
[323555261,1714084265601,-648.5,0.0001178,2]
[323555262,1714084265612,-500.0,0.0001178,2]
[323555263,1714084265622,-500.0,0.0001178,2]
[323555264,1714084265631,-500.0,0.0001178,2]
[323555265,1714084265640,-523.5,0.0001178,2]
[323555266,1714084265649,-500.0,0.0001178,2]
[323555267,1714084265661,-500.0,0.0001178,2]
[323555268,1714084265671,-1032.67,0.0001178,2]
[323555269,1714084265681,-1048.16,0.0001178,2]
[323555270,1714084265692,-500.0,0.0001178,2]
[323555271,1714084265702,-500.0,0.0001178,2]
[323555272,1714084265711,-500.0,0.0001178,2]
[323555273,1714084265721,-500.0,0.0001178,2]
[323555274,1714084265731,-500.0,0.0001178,2]
[323555275,1714084265740,-500.0,0.0001178,2]
[323555276,1714084265750,-500.0,0.0001178,2]
[323555277,1714084265760,-500.0,0.0001178,2]
[323555278,1714084265772,-500.0,0.0001178,2]
[323555279,1714084265782,-242.25167735,0.0001178,2]
[323555280,1714084265793,-500.0,0.0001178,2]
[323555281,1714084265803,-500.0,0.0001178,2]
[323555282,1714084265813,-500.0,0.0001178,2]
[323555283,1714084265822,-500.0,0.0001178,2]
[323555284,1714084265831,-500.0,0.0001178,2]
[323555285,1714084265841,-543.7,0.0001178,2]
[323555286,1714084265850,-500.0,0.0001178,2]
[323555287,1714084265859,-500.0,0.0001178,2]
[323555288,1714084265869,-1072.59,0.0001178,2]
[323555289,1714084265881,-500.0,0.0001178,2]
[323555290,1714084265895,-500.0,0.0001178,2]
[323555291,1714084265905,-500.0,0.0001178,2]
[323555292,1714084265914,-501.22962127,0.0001178,2]
[323555293,1714084265925,-500.0,0.0001178,2]
[323555294,1714084265934,-223.62294395,0.0001178,2]
[323555295,1714084265945,-450.28222481,0.0001178,2]
[323555296,1714084265955,-500.0,0.0001178,2]
[323555297,1714084265966,-255.34693572,0.0001178,2]
[323555298,1714084265976,-500.0,0.0001178,2]
[323555299,1714084265986,-500.0,0.0001178,2]
[323555300,1714084265996,-500.0,0.0001178,2]
[323555301,1714084266006,-500.0,0.0001178,2]
[323555302,1714084266015,-500.0,0.0001178,2]
[323555303,1714084266025,-500.0,0.0001178,2]
[323555304,1714084266034,-500.0,0.0001178,2]
[323555305,1714084266044,-500.0,0.0001178,2]
[323555306,1714084266054,-500.0,0.0001178,2]
[323555307,1714084266063,-500.0,0.0001178,2]
[323555308,1714084266073,-500.0,0.0001178,2]
[323555309,1714084266082,-500.0,0.0001178,2]
[323555310,1714084266092,-500.0,0.0001178,2]
[323555311,1714084266102,-500.0,0.0001178,2]
[323555312,1714084266111,-590.41451218,0.0001178,2]
[323555313,1714084266121,-500.0,0.0001178,2]
[323555314,1714084266131,-500.0,0.0001178,2]
[323555315,1714084266141,-500.0,0.0001178,2]
[323555316,1714084266150,-500.0,0.0001178,2]
[323555317,1714084266160,-500.0,0.0001178,2]
[323555318,1714084266169,-1083.93,0.0001178,2]
[323555319,1714084266179,-575.2327908,0.0001178,2]
[323555320,1714084266189,-500.0,0.0001178,2]
[323555321,1714084266390,-150.0,0.0001178,2]
[323555322,1714084266401,-500.0,0.0001178,2]
[323555323,1714084266410,-500.0,0.0001178,2]
[323555324,1714084266421,-500.0,0.0001178,2]
[323555325,1714084266431,-500.0,0.0001178,2]
[323555326,1714084266441,-500.0,0.0001178,2]
[323555327,1714084266450,-500.0,0.0001178,2]
[323555328,1714084266460,-500.0,0.0001178,2]
[323555329,1714084266469,-500.0,0.0001178,2]
[323555330,1714084266479,-500.0,0.0001178,2]
[323555331,1714084266489,-500.0,0.0001178,2]
[323555332,1714084266499,-500.0,0.0001178,2]
[323555333,1714084266508,-1097.69,0.0001178,2]
[323555334,1714084266519,-500.0,0.0001178,2]
[323555335,1714084266529,-500.0,0.0001178,2]
[323555336,1714084266539,-500.0,0.0001178,2]
[323555337,1714084266549,-500.0,0.0001178,2]
[323555338,1714084266559,-500.0,0.0001178,2]
[323555339,1714084266569,-849.25,0.0001178,2]
[323555340,1714084266579,-500.0,0.0001178,2]
[323555341,1714084266589,-500.0,0.0001178,2]
[323555342,1714084266599,-1000.98,0.0001178,2]
[323555343,1714084266610,-500.0,0.0001178,2]
[323555344,1714084266620,-258.38,0.0001178,2]
[323555345,1714084266629,-500.0,0.0001178,2]
[323555346,1714084266638,-500.0,0.0001178,2]
[323555347,1714084266648,-507.62,0.0001178,2]
[323555348,1714084266658,-500.0,0.0001178,2]
[323555349,1714084266667,-500.0,0.0001178,2]
[323555350,1714084266679,-500.0,0.0001178,2]
[323555351,1714084266691,-531.62,0.0001178,2]
[323555352,1714084266700,-500.0,0.0001178,2]
[323555353,1714084266710,-265.97704112,0.0001178,2]
[323555354,1714084266720,-500.0,0.0001178,2]
[323555355,1714084266730,-500.0,0.0001178,2]
[323555356,1714084266739,-528.77,0.0001178,2]
[323555357,1714084266749,-500.0,0.0001178,2]
[323555358,1714084266758,-500.0,0.0001178,2]
[323555359,1714084266767,-155.53965833,0.0001178,2]
[323555360,1714084266777,-500.0,0.0001178,2]
[323555361,1714084266787,-500.0,0.0001178,2]
[323555362,1714084266796,-500.0,0.0001178,2]
[323555363,1714084266805,-500.0,0.0001178,2]
[323555364,1714084266814,-500.0,0.0001178,2]
[323555365,1714084266823,-500.0,0.0001178,2]
[323555366,1714084266833,-500.0,0.0001178,2]
[323555367,1714084266843,-500.0,0.0001178,2]
[323555368,1714084266852,-500.0,0.0001178,2]
[323555369,1714084266861,-623.81,0.0001178,2]
[323555370,1714084266870,-500.0,0.0001178,2]
[323555371,1714084266880,-500.0,0.0001178,2]
[323555372,1714084266890,-500.0,0.0001178,2]
[323555373,1714084266900,-1232.17,0.0001178,2]
[323555374,1714084266910,-500.0,0.0001178,2]
[323555375,1714084266923,-500.0,0.0001178,2]
[323555376,1714084266932,-500.0,0.0001178,2]
[323555377,1714084266941,-1124.9,0.0001178,2]
[323555378,1714084266950,-500.0,0.0001178,2]
[323555379,1714084266959,-500.0,0.0001178,2]
[323555380,1714084266968,-500.0,0.0001178,2]
[323555381,1714084266977,-500.0,0.0001178,2]
[323555382,1714084266987,-1106.27,0.0001178,2]
[323555383,1714084266996,-500.0,0.0001178,2]
[323555384,1714084267006,-500.0,0.0001178,2]
[323555385,1714084267015,-500.0,0.0001178,2]
[323555386,1714084267025,-500.0,0.0001178,2]
[323555387,1714084267035,-500.0,0.0001178,2]
[323555388,1714084267044,-500.0,0.0001178,2]
[323555389,1714084267054,-500.0,0.0001178,2]
[323555390,1714084267064,-926.67,0.0001178,2]
[323555391,1714084267073,-595.68846643,0.0001178,2]
[323555392,1714084267083,-500.0,0.0001178,2]
[323555393,1714084267093,-500.0,0.0001178,2]
[323555394,1714084267102,-500.0,0.0001178,2]
[323555395,1714084267111,-500.0,0.0001178,2]
[323555396,1714084267120,-500.0,0.0001178,2]
[323555397,1714084267129,-503.69,0.0001178,2]
[323555398,1714084267140,-500.0,0.0001178,2]
[323555399,1714084267148,-500.0,0.0001178,2]
[323555400,1714084267158,-500.0,0.0001178,2]
[323555401,1714084267167,-500.0,0.0001178,2]
[323555402,1714084267179,-500.0,0.0001178,2]
[323555403,1714084267189,-500.0,0.0001178,2]
[323555404,1714084267199,-500.0,0.0001178,2]
[323555405,1714084267208,-500.0,0.0001178,2]